{"text_format":"3","workbook":"xlsx","n_sheets":48,"sheets":["Инструкция","Лог обновления","Титульный","Территории","Дифференциация","Доступ к товарам и услугам","Публикация в других источниках","Сведения об изменении","Комментарии","Проверка","AllSheetsInThisWorkbook","TEHSHEET","modCheckCyan","modSettings","modfrmSetForPrint","modInfo","et_union_hor","et_union_vert","modList00","modList01","modList02","modList03","modList07","modList09","modHTTP","modfrmRegion","MR_LIST","REESTR_VT","REESTR_VED","modfrmReestrObj","DataOrg","modProv","modReestr","modfrmReestr","modUpdTemplMain","REESTR_ORG","modClassifierValidate","modHyp","modfrmDateChoose","modComm","modThisWorkbook","REESTR_MO","modfrmReestrMR","modServiceModule","modfrmCheckUpdates","REESTR_DS","REESTR_CHS","REESTR_LINK"],"not_rendered":{"images":23,"macros":1,"defined_names":195},"read":"whole","date_system":"1900"}

{"sheet":"Инструкция","index":0,"n_rows":90,"n_cols":27,"rows_kept":90,"merged":[[1,1,1,6],[2,1,2,2],[4,1,4,24],[6,4,18,23],[20,5,20,12],[20,15,20,23],[21,5,21,12],[21,15,21,23],[22,15,22,22],[34,4,38,23],[39,4,39,23],[40,4,44,23],[45,4,56,23],[57,4,57,23],[58,4,58,6],[58,7,58,23],[59,4,59,6],[60,7,60,23],[69,4,69,23],[70,4,70,23],[71,5,71,23],[72,5,72,23],[73,5,73,23],[74,4,74,23],[75,4,75,23],[76,4,76,23],[77,4,77,23],[78,4,78,23],[79,4,79,23],[80,4,80,23],[81,4,81,23],[82,4,82,23],[83,4,83,23],[85,4,85,23],[87,5,87,18],[89,5,89,23]]}
[{"$nulls":26}," (требуется обновление)"]
[null,{"$f":"\"Код шаблона: \" & GetCode()","v":"Код шаблона: JKH.OPEN.INFO.QUARTER.VO.6"}]
[null,{"$f":"\"Версия \" & GetVersion()","v":"Версия 1.0"}]
[]
[null,"Информация о наличии (отсутствии) технической возможности подключения к централизованной системе водоотведения, а также о регистрации и ходе реализации заявок о подключении к централизованной системе водоотведения"]
[]
[{"$nulls":4},"• На рабочем месте должен быть установлен MS Office 2003 SP3, 2007 SP3, 2010, 2013 с полной версией MS Excel                                                                                                                                • Для корректной работы отчета необходим доступ к сети \"Интернет\"                                                         \n                                                                                                                                                          • Макросы во время работы должны быть включены (!)\n• Для корректной работы отчёта требуется выбрать низкий уровень безопасности\n(В меню MS Excel 2003: Сервис | Макрос | Безопасность | выбрать пункт «Низкая безопасность» | OK)\n(В меню MS Excel 2007/2010/2013: Параметры Excel | Центр управления безопасностью | Параметры центра управления безопасностью | Параметры макросов | Включить все макросы | ОК)\n\n• Если Вы работаете в табличном процессоре MS Excel 2007 и выше, то можете использовать для работы формат XLSB (Двоичная книга Excel). При работе в формате XLSB заметно быстрее происходит сохранение файла, а также уменьшается размер по сравнению с форматами XLS и XLSM\n\n• Не рекомендуется снимать защиту с листов и каким-либо образом модифицировать защищаемые формулы и расчётные поля, в противном случае, отчёт будет отклонён системой\n• При сохранении не следует выбирать формат XLSX (Книга Excel), так как в указанном формате макросы, необходимые для работы отчёта, безвозвратно удаляются"]
{"$rows_empty":13}
[{"$nulls":4},"A"," - не обязательные для заполнения",{"$nulls":8},"A"," - с формулами и константами"]
[{"$nulls":4},"A"," - обязательные для заполнения",{"$nulls":8},"A"," - с выбором значений до двойному клику,"]
[{"$nulls":15},"либо с возможностью выбора даты из календаря или ручного ввода"]
{"$rows_empty":11}
[{"$nulls":4},"Если в предложенном Вам списке необходимая организация, МР/МО отсутствуют, обновите реестры с помощью кнопок\n\nВ результате синхронизации с базой данных список организаций (МР/МО) будет заменён актуальным (механизм синхронизации требует подключения к сети Интернет и основан на использовании протокола HTTPS (TCP порт 443))\n\nЕсли после обновления Вам не удалось найти необходимую организацию в списке, обратитесь к ответственному за поддержание реестра Вашего региона."]
{"$rows_empty":10}
[{"$nulls":4},"• При сохранении шаблона осуществляется проверка корректности данных, в том числе на наличие значений в ячейках, обязательных для заполнения\n\n• Если какая-то ячейка не удовлетворяет условию проверки, на лист «Проверка» добавляется гиперссылка на данную ячейку и указывается причина ошибки\n\n• В колонке «Статус» для каждого сообщения возможны 2 значения: ошибка и предупреждение\n\n• При наличии сообщений со статусом «Ошибка» шаблон будет отклонён системой и не будет загружен в хранилище данных, сообщения со статусом «Предупреждение» носят информационный характер, и такой шаблон будет принят системой"]
{"$rows_empty":11}
[{"$nulls":4},"Обратиться в службу технической поддержки"]
{"$rows_empty":11}
[{"$nulls":4},"Законодательная основа шаблона"]
[{"$nulls":4},"Данный шаблон разработан в соответствии с:"]
[{"$nulls":4}," • ","Постановлением Правительства РФ от 17.01.2013 N 6 \"О стандартах раскрытия информации в сфере водоснабжения и водоотведения\""]
[{"$nulls":4}," • ","Приказом ФСТ России от 15.05.2013 N 129 \"Об утверждении форм предоставления информации, подлежащей раскрытию, организациями, осуществляющими горячее водоснабжение, холодное водоснабжение и водоотведение, и органами регулирования тарифов, а также Правил заполнения таких форм\"\n"]
[]
[{"$nulls":4},"Принципы работы с шаблоном"]
[{"$nulls":4},"  Перед началом работы с шаблоном Вам необходимо нажать кнопку \"Приступить к заполнению\", после чего на форме выбора выбрать из выпадающего списка нужный субъект РФ. После выбора субъекта РФ в шаблоне отобразятся листы для заполнения."]
[{"$nulls":4},"  На листе «Титульный» нужно заполнить все ячейки голубого цвета."]
[{"$nulls":4},"  На листе «Уведомление» «Адрес сайта в сети интернет» вводите, не нарушая цвет ячейки /если копируете гиперссылку из браузера, то выполните двойной щелчок левой кнопки мыши по ячейке и только после этого можете вставить скопированный элемент/.\n"]
[{"$nulls":4},"  При вводе даты на расчетных листах необходимо выбрать дату из календаря (иконка справа от выбранной ячейки), либо ввести дату непосредственно в ячейку в формате - 'ДД.ММ.ГГГГ'."]
[{"$nulls":4},"  Если какой-либо из показателей на расчетных листах для Вашей организации отсутствует, введите в поле, обязательное для заполнение, «0» (для числовых показателей) и «-» (для текстовых).\n"]
[{"$nulls":4},"  Внимательно следите за информационными сообщениями на расчетных листах."]
[{"$nulls":4},"  Все необходимые комментарии по всем формам Вы можете отразить на листе «Комментарии»."]
[{"$nulls":4},"Инструкция по загрузке сопроводительных материалов с помощью \"ЕИАС Мониторинг\""]
[{"$nulls":4},"Получить более полную Инструкцию для данного шаблона"]
[]
[{"$nulls":4},"При наличии подключения к Интернет, можно автоматически проверять наличие доступных обновлений. Выберите способ оповещения о наличии обновлений для отчёта:"]
[]
[{"$nulls":5},"проверять доступные обновления (рекомендуется)",{"$nulls":20},"y"]
[]
[{"$nulls":5},"никогда не проверять наличие обновлений (не рекомендуется)"]

{"sheet":"Лог обновления","index":1,"n_rows":13,"n_cols":3,"rows_kept":13,"hidden":true}
["Дата/Время","Сообщение","Статус"]
["2018-04-03T13:13:19","Проверка доступных обновлений...","Информация"]
["2018-04-03T13:13:23","Нет доступных обновлений для отчёта с кодом JKH.OPEN.INFO.QUARTER.VO.6!","Информация"]
["2018-04-03T13:15:31","Проверка доступных обновлений...","Информация"]
["2018-04-03T13:15:33","Нет доступных обновлений для отчёта с кодом JKH.OPEN.INFO.QUARTER.VO.6!","Информация"]
["2018-04-03T13:23:00","Проверка доступных обновлений...","Информация"]
["2018-04-03T13:23:01","Нет доступных обновлений для отчёта с кодом JKH.OPEN.INFO.QUARTER.VO.6!","Информация"]
["2018-04-03T14:14:10","Проверка доступных обновлений...","Информация"]
["2018-04-03T14:14:11","Нет доступных обновлений для отчёта с кодом JKH.OPEN.INFO.QUARTER.VO.6!","Информация"]
["2018-04-09T15:06:18","Проверка доступных обновлений...","Информация"]
["2018-04-09T15:06:19","Нет доступных обновлений для отчёта с кодом JKH.OPEN.INFO.QUARTER.VO.6!","Информация"]
["2018-04-13T01:33:50","Проверка доступных обновлений...","Информация"]
["2018-04-13T01:33:51","Нет доступных обновлений для отчёта с кодом JKH.OPEN.INFO.QUARTER.VO.6!","Информация"]

{"sheet":"Титульный","index":2,"n_rows":41,"n_cols":6,"rows_kept":41,"merged":[[4,4,4,5]]}
[{"$nulls":5},28425154]
[]
[]
[{"$nulls":5},{"$f":"version","v":"Версия 1.0"}]
[{"$nulls":4},"Информация о наличии (отсутствии) технической возможности подключения к централизованной системе водоотведения, а также о регистрации и ходе реализации заявок о подключении к централизованной системе водоотведения"]
[]
[{"$nulls":4},"Субъект РФ","Нижегородская область"]
[]
[{"$nulls":4},"Публикация2","На сайте регулирующего органа"]
[]
[{"$nulls":4},"По решению организации информация раскрыта на ее официальном сайте в сети Интернет?","да"]
[]
[{"$nulls":4},"Тип отчета","Первичное раскрытие информации"]
[{"$nulls":4},"Дата внесения изменений в информацию, подлежащую раскрытию"]
[]
[{"$nulls":4},"Применяется дифференциация тарифа по централизованным системам теплоснабжения?"]
[{"$nulls":4},"Информация по скольким централизованным системам теплоснабжения будет заполнена в шаблоне?"]
[]
[{"$nulls":5},"Отчетный период"]
[{"$nulls":4},"Год",2018]
[{"$nulls":4},"Квартал","I квартал"]
[]
[{"$nulls":4},"Является ли данное юридическое лицо подразделением (филиалом) другой организации"]
[]
[]
[{"$nulls":4},"Наименование организации (филиала)","ООО \"Профит\""]
[]
[]
[{"$nulls":4},"Наименование головной организации"]
[{"$nulls":4},"ИНН","5262287335"]
[{"$nulls":4},"КПП","526201001"]
[{"$nulls":4},"Вид деятельности"]
[]
[{"$nulls":4},"Почтовый адрес регулируемой организации","603104, Россия, Нижний Новгород, ул. Нартова, д.6, пом.2, офис 67"]
[{"$nulls":4},"Фамилия, имя, отчество руководителя","Удалов Борис Вадимович"]
[]
[{"$nulls":5},"Ответственный за составление формы"]
[{"$nulls":4},"Фамилия, имя, отчество","Лисина Наталья Валентиновна"]
[{"$nulls":4},"Должность","заместитель начальника технического отдела"]
[{"$nulls":4},"(код) номер телефона","8 (831)278 63 08"]
[{"$nulls":4},"e-mail","om1997@mail.ru"]

{"sheet":"Территории","index":3,"n_rows":16,"n_cols":17,"rows_kept":16,"merged":[[3,3,3,7],[4,3,4,7],[6,3,6,4],[6,5,6,6],[8,3,8,4],[8,5,8,7],[8,8,8,11],[9,5,9,6],[9,8,9,9],[10,5,10,6],[10,8,10,9],[12,3,14,3],[12,4,14,4],[12,5,13,5],[12,6,13,6],[12,7,13,7]]}
[]
[]
[]
[{"$nulls":3},"Перечень муниципальных районов и муниципальных образований (территорий оказания услуг)"]
[{"$nulls":3},{"$f":"IF(org=0,\"Не определено\",org)","v":"ООО \"Профит\""}]
[]
[{"$nulls":5},"да"]
[]
[{"$nulls":3},"Территория оказания услуг",null,"Муниципальный район",null,null,"Муниципальное образование"]
[{"$nulls":3},"№ п/п","Наименование","№ п/п",null,"Наименование","№ п/п",null,"Наименование","ОКТМО"]
[{"$nulls":3},"1","2","3",null,"4","5",null,"6","7"]
[{"$nulls":3},0,null,"",null,null,""]
[null,"auto",null,1,"город Нижний Новгород, город Нижний Новгород (22701000);","",1,"город Нижний Новгород","","1","город Нижний Новгород","22701000",{"$nulls":4},"город Нижний Новгород, город Нижний Новгород (22701000);"]
[{"$nulls":8},"",null,""]
[{"$nulls":5},"",null,"",""]
[null,"man",null,null,"","",null,null,"",{"$nulls":7},"Добавить территорию оказания услуг"]

{"sheet":"Дифференциация","index":4,"n_rows":26,"n_cols":26,"rows_kept":26,"merged":[[3,3,3,8],[4,3,4,8],[5,0,6,5],[7,1,7,3],[7,4,7,5],[8,1,8,3],[8,4,8,5],[9,1,9,3],[9,4,9,5],[10,1,10,3],[10,4,10,5],[11,1,11,3],[12,1,12,3],[13,1,13,3],[17,0,18,0],[17,3,17,4],[17,5,17,8],[17,9,17,12],[18,6,18,7],[18,10,18,11],[19,6,19,7],[19,10,19,11],[21,3,23,3],[21,4,23,4],[21,5,23,5],[21,6,22,6],[21,7,22,7],[21,8,22,8],[21,9,22,9],[24,2,25,2]]}
[]
[]
[]
[{"$nulls":3},"Информация о наличии (отсутствии) технической возможности подключения к централизованной системе водоотведения, а также о регистрации и ходе реализации заявок о подключении к централизованной системе водоотведения"]
[{"$nulls":3},{"$f":"IF(org=0,\"Не определено\",org)","v":"ООО \"Профит\""}]
{"$rows_empty":12}
[{"$nulls":3},"Вид деятельности",null,"Дифференциация по территориям оказания услуг",{"$nulls":3},"Дифференциация по централизованным системам водоотведения"]
[{"$nulls":3},"№ п/п","Наименование","да/нет","№ п/п",null,"Наименование","да/нет","№ п/п",null,"Наименование"]
[{"$nulls":3},"1","2","3","4",null,"5","6","7",null,"8"]
[]
[{"$nulls":3},"1","Прием и транспортировка сточных вод","нет",null,1,null,"нет","","1","",{"$nulls":10},64235590,"a",1705000]
[{"$nulls":10},"",null,""]
[{"$nulls":8},"",null,""]
[{"$nulls":4},"",{"$nulls":5},""]
[{"$nulls":10},""]

{"sheet":"Доступ к товарам и услугам","index":5,"n_rows":15,"n_cols":10,"rows_kept":15,"merged":[[3,3,3,9],[4,3,4,9],[6,3,7,3],[6,4,7,4],[6,5,7,5],[6,6,7,6],[6,7,7,7],[6,8,6,9],[12,3,14,3],[12,4,14,4],[12,5,14,5],[12,6,13,6],[12,7,13,7],[12,8,12,9]]}
[{"$nulls":9},4]
[]
[]
[{"$nulls":3},"Информация о наличии (отсутствии) технической возможности подключения к централизованной системе водоотведения, а также о регистрации и ходе реализации заявок о подключении к централизованной системе водоотведения"]
[{"$nulls":3},{"$f":"IF(org=0,\"Не определено\",org)","v":"ООО \"Профит\""}]
[]
[{"$nulls":3},"№ п/п","Информация, подлежащая раскрытию","Единица измерения","О","№ п/п","Вид деятельности:\r\n  - Прием и транспортировка сточных вод\r\n\r\nТерритория оказания услуг:\r\n  - без дифференциации\r\n\r\nЦентрализованная система водоотведения:\r\n  - без дифференциации"]
[{"$nulls":8},"Показатель","Комментарий"]
[{"$nulls":3},"1","2","3",null,null,{"$f":"J1&\".1\"","v":"4.1"},{"$f":"J1&\".2\"","v":"4.2"}]
[{"$nulls":3},1,"Количество поданных заявок","шт",null,null,0]
[{"$nulls":3},2,"Количество исполненных заявок","шт",null,null,0]
[{"$nulls":3},3,"Количество заявок с решением об отказе в подключении","шт",null,null,0]
[{"$nulls":3},4,"Резерв мощности централизованной системы водоотведения в течение квартала","тыс.куб.м/сутки",null,1,"0"]
[{"$nulls":8},{"v":0,"d":"0.00"}]
[{"$nulls":8},"Добавить централизованную систему водоотведения"]

{"sheet":"Публикация в других источниках","index":6,"n_rows":12,"n_cols":8,"rows_kept":12,"merged":[[4,3,4,4],[5,3,5,4],[7,3,8,3],[7,4,8,4],[7,5,7,7]]}
[]
[]
[]
[]
[{"$nulls":3},"Публикация в других источниках\n(публикация информации по решению организации на ее официальном сайте в сети \"Интернет\")"]
[{"$nulls":3},{"$f":"IF(org=0,\"Не определено\",org)","v":"ООО \"Профит\""}]
[]
[{"$nulls":3},"№ п/п","Описание опубликованной информации","Официальный сайт организации в сети \"Интернет\""]
[{"$nulls":5},"Дата\nразмещения информации","Адрес официальной страницы сайта\nв сети \"Интернет\", на котором размещена информация","Ссылка на снимок экрана\nофициальной страницы сайта в сети \"Интернет\", на котором размещена информация"]
[{"$nulls":3},"1","2","3","4","5"]
[{"$nulls":3},1,"Информация о наличии (отсутствии) технической возможности подключения к централизованной системе водоотведения, а также о регистрации и ходе реализации заявок о подключении к централизованной системе водоотведения (пункт 42 Постановления Правительства РФ от 17.01.2013 N 6 \"О стандартах раскрытия информации в сфере водоснабжения и водоотведения\")","08.04.2018","http://profit-portal.ru/","https://tariff.eias.ru/disclo/get_file?p_guid=0fcecc13-c07a-49f7-97a1-ff1471ec4092"]
[{"$nulls":4},"Добавить опубликованную информацию"]

{"sheet":"Сведения об изменении","index":7,"n_rows":14,"n_cols":5,"rows_kept":14,"hidden":true,"merged":[[6,3,6,4],[7,3,7,4]]}
[]
[]
[]
[]
[]
[]
[{"$nulls":3},"Сведения об изменениях в первоначально опубликованной информации"]
[{"$nulls":3},{"$f":"IF(org=0,\"Не определено\",org)","v":"ООО \"Профит\""}]
[]
[{"$nulls":3},"№ п/п","Сведения"]
[{"$nulls":3},"1","2"]
[{"$nulls":3},0]
[{"$nulls":3},1]
[{"$nulls":4},"Добавить строку"]

{"sheet":"Комментарии","index":8,"n_rows":14,"n_cols":5,"rows_kept":14,"merged":[[6,3,6,4],[7,3,7,4]]}
[]
[]
[]
[]
[]
[]
[{"$nulls":3},"Комментарии"]
[{"$nulls":3},{"$f":"IF(org=0,\"Не определено\",org)","v":"ООО \"Профит\""}]
[]
[{"$nulls":3},"№ п/п","Комментарий"]
[{"$nulls":3},"1","2"]
[{"$nulls":3},0]
[null,null,"О",1,"Резервной мощности нет. Технологическое присоединение не осуществляется."]
[{"$nulls":4},"Добавить"]

{"sheet":"Проверка","index":9,"n_rows":4,"n_cols":5,"rows_kept":4,"merged":[[1,1,1,4]]}
[]
[null,"Результат проверки"]
[]
[null,"Ссылка1","Ссылка2","Причина","Статус"]

{"sheet":"AllSheetsInThisWorkbook","index":10,"n_rows":39,"n_cols":2,"rows_kept":39,"hidden":true}
["Расчетные листы","Скрытые листы"]
["Инструкция","AllSheetsInThisWorkbook"]
["Лог обновления","TEHSHEET"]
["Титульный","modCheckCyan"]
["Территории","modSettings"]
["Дифференциация","modfrmSetForPrint"]
["Доступ к товарам и услугам","modInfo"]
["Публикация в других источниках","et_union_hor"]
["Сведения об изменении","et_union_vert"]
["Комментарии","modList00"]
["Проверка","modList01"]
[null,"modList02"]
[null,"modList03"]
[null,"modList07"]
[null,"modList09"]
[null,"modHTTP"]
[null,"modfrmRegion"]
[null,"MR_LIST"]
[null,"REESTR_VT"]
[null,"REESTR_VED"]
[null,"modfrmReestrObj"]
[null,"DataOrg"]
[null,"modProv"]
[null,"modReestr"]
[null,"modfrmReestr"]
[null,"modUpdTemplMain"]
[null,"REESTR_ORG"]
[null,"modClassifierValidate"]
[null,"modHyp"]
[null,"modfrmDateChoose"]
[null,"modComm"]
[null,"modThisWorkbook"]
[null,"REESTR_MO"]
[null,"modfrmReestrMR"]
[null,"modServiceModule"]
[null,"modfrmCheckUpdates"]
[null,"REESTR_DS"]
[null,"REESTR_CHS"]
[null,"REESTR_LINK"]

{"sheet":"TEHSHEET","index":11,"n_rows":43,"n_cols":14,"rows_kept":43,"hidden":true}
["NSRF",null,"year_list","logical","Месяц\n(MONTH)","Квартал\n(QUARTER)","Месяц\n(kind_of_publication)","Единица измерения объема оказываемых услуг\n/kind_of_unit/","Вид тарифа\n/list_of_tariff/","mr_id","версия шаблона\n (DocProp_Version)","0.1","Тип отчета\ndata_type","Print_form"]
["Алтайский край",null,2013,"да","январь","I квартал","На официальном сайте организации","тыс.куб.м/сутки",null,52,"код шаблона\n(DocProp_TemplateCode)","JKH.OPEN.INFO.QUARTER.WARM.570","Первичное раскрытие информации","Форма 1.1"]
["Амурская область",null,2014,"нет","февраль","II квартал","На сайте регулирующего органа","тыс.куб.м/час","Без дифференциации","sys_id","сфера\n(TSphere)","ТС","Корректировка ранее раскрытой информации","Форма 1.2"]
["Белгородская область",null,2015,null,"март","III квартал",{"$nulls":3},104,"сфера(латиница)\n(TSphere_trans)","WARM","Изменения в раскрытой ранее информации","Форма 1.3"]
["Волгоградская область",null,2016,null,"апрель","IV квартал",{"$nulls":4},"сфера расширено\n(TSphere_full)",null,null,"Форма 1.4"]
["Еврейская автономная область",null,2017,null,"май",{"$nulls":8},"Форма 1.5"]
["Кабардино-Балкарская республика",{"$nulls":3},"июнь",{"$nulls":8},"Форма 1.6"]
["Калининградская область",{"$nulls":3},"июль",{"$nulls":5},"true",null,null,"Форма 1.7"]
["Калужская область",{"$nulls":3},"август",{"$nulls":8},"Форма 1.8"]
["Кемеровская область",{"$nulls":3},"сентябрь",{"$nulls":8},"Форма 1.9"]
["Костромская область",{"$nulls":3},"октябрь",{"$nulls":5},"https://appsrv.regportal-tariff.ru/procwsxls/",null,null,"Форма 1.10"]
["Краснодарский край",{"$nulls":3},"ноябрь",{"$nulls":8},"Форма 1.11"]
["Красноярский край",{"$nulls":3},"декабрь",{"$nulls":8},"Форма 1.12"]
["Ленинградская область",{"$nulls":12},"Форма 2.1"]
["Нижегородская область",{"$nulls":12},"Форма 2.2"]
["Новосибирская область",{"$nulls":5},"Текущая дата",{"$nulls":6},"Форма 2.3"]
["Омская область",null,"Организация",{"$f":"IF(f_year = \"\",\"\", IF(LEN(f_quart)=0,\"\",IF(f_quart=\"I квартал\", \"01.01.\"&f_year,IF(f_quart=\"II квартал\",\"01.04.\"&f_year,(IF(f_quart=\"III квартал\", \"01.07.\"&f_year,\"01.10.\"&f_year)))) ))","v":"01.01.2018"},{"$f":"IF(f_year = \"\",\"\", IF(LEN(f_quart)=0,\"\",IF(f_quart=\"I квартал\", \"31.03.\"& f_year,IF(f_quart=\"II квартал\",\"30.06.\"& f_year,(IF(f_quart=\"III квартал\", \"30.09.\"& f_year,\"31.12.\"& f_year)))) ))","v":"31.03.2018"},null,"13.04.2018 6:33:53",{"$nulls":6},"Форма 2.4"]
["Оренбургская область",{"$nulls":12},"Форма 2.5"]
["Пермский край",{"$nulls":5},"Признак изменения данных на листе Доступ к товарам и услугам",{"$nulls":6},"Форма 2.6"]
["Республика Башкортостан",null,"Виды деятельности",{"$nulls":3},true,{"$nulls":6},"Форма 2.7"]
["Республика Бурятия",{"$nulls":12},"Форма 2.8"]
["Республика Дагестан",{"$nulls":12},"Форма 2.9"]
["Республика Карелия",{"$nulls":12},"Форма 2.10"]
["Республика Крым",{"$nulls":12},"Форма 2.11"]
["Республика Татарстан",{"$nulls":12},"Форма 2.12"]
["Рязанская область",{"$nulls":12},"Форма 2.13"]
["Самарская область",{"$nulls":12},"Форма 2.14"]
["Ставропольский край",{"$nulls":12},"Форма 3.1"]
["Тверская область",{"$nulls":12},"Форма 3.2"]
["Томская область",{"$nulls":12},"Форма 3.3"]
["Тульская область",{"$nulls":12},"Форма 3.4"]
["Тюменская область",{"$nulls":12},"Форма 3.5"]
["Удмуртская республика",{"$nulls":12},"Форма 3.6"]
["Ульяновская область",{"$nulls":12},"Форма 3.7"]
["Хабаровский край",{"$nulls":12},"Форма 3.8"]
["Ханты-Мансийский автономный округ",{"$nulls":12},"Форма 3.9"]
["Чувашская республика",{"$nulls":12},"Форма 3.10"]
["г.Севастополь",{"$nulls":12},"Форма 3.11"]
[{"$nulls":13},"Форма 3.12"]
[{"$nulls":13},"Форма 4.1"]
[{"$nulls":13},"Форма 4.2"]
[{"$nulls":13},"Форма 4.3"]
[{"$nulls":13},"Форма 4.4"]

{"sheet":"modCheckCyan","index":12,"n_rows":22,"n_cols":1,"rows_kept":22,"hidden":true}
[]
[{"$f":"IF(Территории!$E$13=\"\",1,0)","v":0}]
[{"$f":"IF(Территории!$H$13=\"\",1,0)","v":0}]
[{"$f":"IF(Территории!$K$13=\"\",1,0)","v":0}]
[{"$f":"IF('Сведения об изменении'!$E$13=\"\",1,0)","v":1}]
[{"$f":"IF('Доступ к товарам и услугам'!$F$13=\"\",1,0)","v":0}]
[{"$f":"IF(Дифференциация!$E$22=\"\",1,0)","v":0}]
[{"$f":"IF(Дифференциация!$F$22=\"\",1,0)","v":0}]
[{"$f":"IF(Дифференциация!$J$22=\"\",1,0)","v":0}]
[{"$f":"IF('Доступ к товарам и услугам'!$I$11=\"\",1,0)","v":0}]
[{"$f":"IF('Доступ к товарам и услугам'!$I$11=\"Введите наименование централизованной системы водоотведения\",1,0)","v":0}]
[{"$f":"IF('Доступ к товарам и услугам'!$I$12=\"\",1,0)","v":0}]
[{"$f":"IF('Доступ к товарам и услугам'!$I$12=\"Введите наименование централизованной системы водоотведения\",1,0)","v":0}]
[{"$f":"IF('Доступ к товарам и услугам'!$I$13=\"\",1,0)","v":0}]
[{"$f":"IF('Доступ к товарам и услугам'!$I$13=\"Введите наименование централизованной системы водоотведения\",1,0)","v":0}]
[{"$f":"IF('Доступ к товарам и услугам'!$I$14=\"\",1,0)","v":0}]
[{"$f":"IF('Доступ к товарам и услугам'!$I$14=\"Введите наименование централизованной системы водоотведения\",1,0)","v":0}]
[{"$f":"IF('Доступ к товарам и услугам'!$I$10=\"\",1,0)","v":0}]
[{"$f":"IF('Доступ к товарам и услугам'!$I$10=\"Введите наименование централизованной системы водоотведения\",1,0)","v":0}]
[{"$f":"IF('Публикация в других источниках'!$F$11=\"\",1,0)","v":0}]
[{"$f":"IF('Публикация в других источниках'!$G$11=\"\",1,0)","v":0}]
[{"$f":"IF('Публикация в других источниках'!$H$11=\"\",1,0)","v":0}]

{"sheet":"modSettings","index":13,"n_rows":14,"n_cols":3,"rows_kept":14,"hidden":true}
["Версия шаблона","VERS_TEMP","BASE"]
["Настройка справочника наименований тарифов (Y / N)","FLAG_NAME_OF_TARIFF","NN"]
["Функционал уведомлений о раскрытии (Y / N)","FLAG_OPEN_UVED","YY"]
["Функционал отслеживания типа отчета (Y / N)","FLAG_TYPE_OF_REP","YY"]
["Подрезание МР/МО по сфере оказания услуг (Y / N)","FLAG_MR_MO","YY"]
["Печать шаблона (Y / N)","FLAG_PRINT_TEMP","NN"]
["Печатные формы (Y / N)","FLAG_PRINT_FORM","YY"]
["Размещение в шаблоне ссылок на материалы Хранилища (Y / N)","FLAG_LINK_DOC","YY"]
["Отметка об отсутствии Интернета в МР/МО (Y / N)","FLAG_INTERNET_MR_MO","NN"]
["Отметка о сдаче бух баланса (Y / N)","FLAG_BUH_BAL","NN"]
["Отметка о доле выручки (Y / N)","FLAG_PART_OF_REV","NN"]
["Отображение данных об организации (Y / N)","FLAG_DATA_ORG","YY"]
["Флаг забора данных из шаблонов группы PRICE (Y / N)","FLAG_AUTOFILL_PRICE","NN"]
["Наличие ссылок на снимки экрана страницы сайта в сети Интернет, на которой размещена информация (Y / N)","FLAG_REF","YY"]

{"sheet":"modfrmSetForPrint","index":14,"n_rows":0,"n_cols":0,"rows_kept":0,"hidden":true}

{"sheet":"modInfo","index":15,"n_rows":25,"n_cols":2,"rows_kept":25,"hidden":true,"merged":[[10,3,10,10],[11,3,11,10],[12,3,12,10],[13,3,13,10],[14,3,14,10],[15,3,15,10],[16,3,16,10]]}
[null,"Титульный"]
[7,"Шаблон предназначен для отправки в субъект РФ, на территории которого осуществляется оказание услуг"]
[1,"Шаблон предназначен для предоставления в регулирующий орган следующей информации:\n1) о наличии (отсутствии) технической возможности подключения к централизованной системе водоотведения, а также о регистрации и ходе реализации заявок о подключении к централизованной системе водоотведения согласно пункту 42 Постановления Правительства РФ от 17.01.2013 N 6;\n2) cведения о раскрытии соответствующей информации на официальном сайте организации в сети Интернет, подлежащие предоставлению в орган исполнительной власти субъекта Российской Федерации в области государственного регулирования цен (тарифов) согласно пункту 10 Постановления Правительства РФ от 17.01.2013 N6;\n3) cведения об изменении, подлежащие публикации, на основании требований пункта 11 Постановления Правительства РФ от 17.01.2013 N 6."]
[2,"Информация, подлежит обязательному опубликованию на официальном сайте в сети \"Интернет\" органа исполнительной власти субъекта Российской Федерации в области государственного регулирования цен (тарифов), и (или) на официальном сайте органа местного самоуправления поселения или городского округа в случае их наделения в соответствии с законом субъекта Российской Федерации полномочиями по государственному регулированию цен (тарифов), согласно пункту 3а) Постановления Правительства РФ от 05.07.2013 №570."]
[3,"Если информация публикуется только на официальном сайте в информационно-телекоммуникационной сети \"Интернет\" (далее – сети Интернет) органа исполнительной власти субъекта Российской Федерации в области государственного регулирования цен (тарифов) или на официальном сайте органа местного самоуправления поселения или городского округа в случае их наделения в соответствии с законом субъекта Российской Федерации полномочиями по государственному регулированию цен (тарифов), в поле \"По решению организации информация раскрыта на ее официальном сайте в сети Интернет?\" необходимо указать \"Нет\".\n\nЕсли же информация дополнительно публикуется на официальном сайте организации в сети Интернет, в поле \"По решению организации информация раскрыта на ее официальном сайте в сети Интернет?\" необходимо указать \"Да\"."]
[4,"По умолчанию установлено значение «Первичное раскрытие информации». Это означает, что информация раскрывается в соответствии с установленными сроком и периодичностью.\n\nВ случае, если в раскрываемой информации произошли изменения, сведения об этих изменениях подлежат опубликованию в шаблоне с типом отчета \"Изменения в раскрытой ранее информации\".\n\nВ случае, если в уже отправленном шаблоне обнаружена ошибка, исправленный шаблон необходимо отправить с типом отчета «Корректировка ранее раскрытой информации»."]
[5,"В случае, если регулируемыми организациями оказываются услуги по нескольким технологически не связанным между собой централизованным системам водоотведения и если в отношении указанных систем устанавливаются различные тарифы в сфере водоотведения, то информация раскрывается отдельно по каждой централизованной системе водоотведения."]
[6]
[null,"Публикация на прочих ресурсах"]
[null,"Вводите адрес сайта, не нарушая цвет ячейки /если копируете гиперссылку из браузера, то выполните двойной щелчок по ячейке и только после этого можете вставить скопированный элемент/\nДля редактирования указанной гиперссылки или перехода по ней выполните двойной щелчок левой клавиши мыши по ячейке"]
[null,{"$f":"IF(OR(FLAG_LINK_DOC=\"Y\",FLAG_LINK_DOC=\"NY\",FLAG_LINK_DOC=\"YY\"),\"Указывается ссылка на загруженный в Хранилище ЕИАС снимок экрана официальной страницы сайта, на котором размещена информация\",\"Указывается ссылка на загруженный в Интернет-ресурс снимок экрана официальной страницы сайта, на котором размещена информация\") & \". Для редактирования указанной гиперссылки или перехода по ней выполните двойной щелчок левой клавиши мыши по ячейке\"","v":"Указывается ссылка на загруженный в Хранилище ЕИАС снимок экрана официальной страницы сайта, на котором размещена информация. Для редактирования указанной гиперссылки или перехода по ней выполните двойной щелчок левой клавиши мыши по ячейке"}]
[null,"Указывается дата, по состоянию на которую информация стала доступной в сети Интернет для неограниченного круга лиц\nВыберите значение из календаря (иконка справа от выбранной ячейки), либо введите дату непосредственно в ячейку в формате - 'ДД.ММ.ГГГГ'"]
[null,"Территории"]
[1,"Наименование территории оказания услуг для целей идентификации"]
[2,"Муниципальные районы и муниципальные образования, на территории которых осуществляется оказание услуг"]
[null,"Дифференциация"]
[1,"В случае, если регулируемая организация осуществляет несколько видов деятельности, информация о которых подлежит раскрытию, информация по каждому виду деятельности раскрывается отдельно."]
[2,"Поле заполняется выбором значений из списка. Если значений для выбора нет - убедитесь, что лист \"Территории\" заполнен."]
[3,"Условное наименование централизованной системы водоотведения для целей идентификации."]
[4,"В случае, если регулируемыми организациями оказываются услуги по нескольким технологически не связанным между собой  централизованным системам водоотведения и если в отношении указанных централизованных систем устанавливаются различные тарифы в сфере водоотведения, то информация раскрывается отдельно по каждой централизованной системе водоотведения."]
[null,"Доступ к товарам и услугам"]
[1,"При использовании регулируемой организацией нескольких централизованных систем водоотведения информация о резерве мощности таких централизованных систем публикуется в отношении каждой централизованной системы водоотведения."]
[null,"Сведения об изменении"]
[1,"Лист заполняется в случае, если на Титульном листе в поле \"Тип отчета\" выбрано значение «Изменения в раскрытой ранее информации»."]
[null,"Нет доступных обновлений, версия отчёта актуальна"]

{"sheet":"et_union_hor","index":16,"n_rows":46,"n_cols":26,"rows_kept":46,"hidden":true,"merged":[[18,3,20,3],[18,4,20,4],[18,5,19,5],[18,6,19,6],[18,7,19,7],[24,5,25,5],[24,6,25,6],[24,7,25,7],[34,3,36,3],[34,4,36,4],[34,5,36,5],[34,6,35,6],[34,7,35,7],[34,8,35,8],[34,9,35,9],[40,6,41,6],[40,7,41,7],[40,8,41,8],[40,9,41,9]]}
[]
[]
["et_List02"]
[]
[]
[]
["et_Comm"]
[]
[]
[]
["et_List03"]
[]
[]
[]
[]
[]
["et_List09_0"]
[]
[null,"auto",null,1,null,null,1,null,null,"1"]
[{"$nulls":10},"Добавить МО"]
[{"$nulls":7},"Добавить МР"]
[]
["et_List09_1"]
[]
[null,"auto",{"$nulls":4},1,null,null,1]
[{"$nulls":10},"Добавить МО"]
[]
["et_List09_2"]
[]
[null,"auto",{"$nulls":7},1]
[]
[]
["et_List07_1"]
[]
[{"$nulls":3},"1",null,"нет",null,1,null,"нет",null,"1",{"$nulls":12},"a",1705000]
[{"$nulls":12},"Добавить централизованную систему водоотведения"]
[{"$nulls":8},"Добавить описание территории оказания услуг"]
[]
["et_List07_4"]
[]
[{"$nulls":7},1,"","нет",null,"1",{"$nulls":12},"a",1705000]
[{"$nulls":12},"Добавить централизованную систему водоотведения"]
[]
["et_List07_5"]
[]
[{"$nulls":11},"1","",{"$nulls":11},"a",1705000]

{"sheet":"et_union_vert","index":17,"n_rows":0,"n_cols":0,"rows_kept":0,"hidden":true}

{"sheet":"modList00","index":18,"n_rows":0,"n_cols":0,"rows_kept":0,"hidden":true}

{"sheet":"modList01","index":19,"n_rows":14,"n_cols":10,"rows_kept":14,"hidden":true,"merged":[[3,3,3,9],[4,3,4,9],[6,3,7,3],[6,4,7,4],[6,5,7,5],[6,6,7,6],[6,7,7,7],[6,8,6,9],[12,3,14,3],[12,4,14,4],[12,5,14,5],[12,6,13,6],[12,7,13,7],[12,8,12,9]]}
{"$rows_empty":7}
[{"$nulls":8},"Показатель","Комментарий"]
[{"$nulls":3},"1","2","3",null,null,{"$f":"J1&\".1\"","v":".1"},{"$f":"J1&\".2\"","v":".2"}]
[]
[]
[]
[{"$nulls":8},"Введите наименование централизованной системы водоотведения"]
[{"$nulls":8},""]

{"sheet":"modList02","index":20,"n_rows":0,"n_cols":0,"rows_kept":0,"hidden":true,"merged":[[4,3,4,4],[5,3,5,4],[7,3,8,3],[7,4,8,4],[7,5,7,7]]}

{"sheet":"modList03","index":21,"n_rows":0,"n_cols":0,"rows_kept":0,"hidden":true,"merged":[[6,3,6,4],[7,3,7,4]]}

{"sheet":"modList07","index":22,"n_rows":22,"n_cols":26,"rows_kept":22,"hidden":true,"merged":[[3,3,3,8],[4,3,4,8],[5,0,6,5],[7,1,7,3],[7,4,7,5],[8,1,8,3],[8,4,8,5],[9,1,9,3],[9,4,9,5],[10,1,10,3],[10,4,10,5],[11,1,11,3],[12,1,12,3],[13,1,13,3],[17,0,18,0],[17,3,17,4],[17,5,17,8],[17,9,17,12],[18,6,18,7],[18,10,18,11],[19,6,19,7],[19,10,19,11],[21,3,23,3],[21,4,23,4],[21,5,23,5],[21,6,22,6],[21,7,22,7],[21,8,22,8],[21,9,22,9],[24,2,25,2]]}
{"$rows_empty":21}
[{"$nulls":23},64279412,"a",1705000]

{"sheet":"modList09","index":23,"n_rows":16,"n_cols":4,"rows_kept":16,"hidden":true,"merged":[[3,3,3,7],[4,3,4,7],[6,3,6,4],[6,5,6,6],[8,3,8,4],[8,5,8,7],[8,8,8,11],[9,5,9,6],[9,8,9,9],[10,5,10,6],[10,8,10,9],[12,3,14,3],[12,4,14,4],[12,5,13,5],[12,6,13,6],[12,7,13,7]]}
{"$rows_empty":11}
[{"$nulls":3},0]
[null,"man"]
[]
[]
[null,"man"]

{"sheet":"modHTTP","index":24,"n_rows":0,"n_cols":0,"rows_kept":0,"hidden":true}

{"sheet":"modfrmRegion","index":25,"n_rows":0,"n_cols":0,"rows_kept":0,"hidden":true}

{"sheet":"MR_LIST","index":26,"n_rows":0,"n_cols":0,"rows_kept":0,"hidden":true}

{"sheet":"REESTR_VT","index":27,"n_rows":0,"n_cols":0,"rows_kept":0,"hidden":true}

{"sheet":"REESTR_VED","index":28,"n_rows":4,"n_cols":2,"rows_kept":4,"hidden":true}
["ID_TARIFF_NAME","VED_NAME"]
[64235589,"Водоотведение, в том числе очистка сточных вод, обращение с осадком сточных вод"]
[64235590,"Прием и транспортировка сточных вод"]
[64235591,"Подключение (технологическое присоединение) к централизованной системе водоотведения"]

{"sheet":"modfrmReestrObj","index":29,"n_rows":0,"n_cols":0,"rows_kept":0,"hidden":true}

{"sheet":"DataOrg","index":30,"n_rows":0,"n_cols":0,"rows_kept":0,"hidden":true}

{"sheet":"modProv","index":31,"n_rows":0,"n_cols":0,"rows_kept":0,"hidden":true}

{"sheet":"modReestr","index":32,"n_rows":0,"n_cols":0,"rows_kept":0,"hidden":true}

{"sheet":"modfrmReestr","index":33,"n_rows":0,"n_cols":0,"rows_kept":0,"hidden":true}

{"sheet":"modUpdTemplMain","index":34,"n_rows":0,"n_cols":0,"rows_kept":0,"hidden":true}

{"sheet":"REESTR_ORG","index":35,"n_rows":268,"n_cols":10,"rows_kept":268,"hidden":true}
["№","REGION_ID","REGION_NAME","RST_ORG_ID","ORG_NAME","INN_NAME","KPP_NAME","ORG_START_DATE","ORG_END_DATE"]
[1,"2634","Нижегородская область","27569496","АО \"БЭТ\"","7708669867","770801001",null,null,"VO"]
[2,"2634","Нижегородская область","26373603","АО \"Борский водоканал\"","5246035757","524601001",null,null,"VO"]
[3,"2634","Нижегородская область","26373616","АО \"ВМЗ\"","5247004695","524701001",null,null,"VO"]
[4,"2634","Нижегородская область","26373593","АО \"Волга\"","5244009279","525350001",null,null,"VO"]
[5,"2634","Нижегородская область","26560525","АО \"ГУ ЖКХ\"","5116000922","511601001","13-05-2009 00:00:00",null,"VO"]
[6,"2634","Нижегородская область","26358314","АО \"ДЗМО\"","5247004494","524701001",null,null,"VO"]
[7,"2634","Нижегородская область","26569426","АО \"ДПО \"Пластик\"","5249015251","525350001",null,null,"VO"]
[8,"2634","Нижегородская область","26322337","АО \"Дзержинское оргстекло\"","5249058752","524901001",null,null,"VO"]
[9,"2634","Нижегородская область","26358310","АО \"ЖКХ \"КАЛИКИНСКОЕ\"","5246014281","524601001",null,null,"VO"]
[10,"2634","Нижегородская область","28158144","АО \"ИП \"Ока-Полимер\"","5249120810","524901001",null,null,"VO"]
[11,"2634","Нижегородская область","26555226","АО \"ЛИНДОВСКОЕ\"","5246000377","524601001",null,null,"VO"]
[12,"2634","Нижегородская область","26358168","АО \"Лысковокоммунсервис\"","5222000321","522201001","09-12-2004 00:00:00",null,"VO"]
[13,"2634","Нижегородская область","26358179","АО \"НЗСМ\"","5223000035","522301001",null,null,"VO"]
[14,"2634","Нижегородская область","30841129","АО \"НОКК\"","5260267654","526001001",null,null,"VO"]
[15,"2634","Нижегородская область","31023931","АО \"НОКК\" (Балахнинский филиал)","5260267654","524443001",null,null,"VO"]
[16,"2634","Нижегородская область","26358290","АО \"НПО \"ПРЗ\"","5244012779","524401001",null,null,"VO"]
[17,"2634","Нижегородская область","28954052","АО \"САПТ\"","5231000751","523101001",null,null,"VO"]
[18,"2634","Нижегородская область","26322331","АО \"СИБУР-НЕФТЕХИМ\"","5249051203","525350001",null,null,"VO"]
[19,"2634","Нижегородская область","26965665","АО \"Славянка\" филиал \"Нижегородский\"","7702707386","525743001",null,null,"VO"]
[20,"2634","Нижегородская область","26358489","АО \"ТРАНС-СИГНАЛ\"","5263024642","526301001","22-06-2016 00:00:00",null,"VO"]
[21,"2634","Нижегородская область","27635647","АУ \"Водоканал\"","5221005856","522101001",null,null,"VO"]
[22,"2634","Нижегородская область","26373555","Беловское МУП ЖКХ","5236002745","523601001",null,null,"VO"]
[23,"2634","Нижегородская область","26373435","Белозеровское МУМППЖКХ","5215000779","521501001","30-06-2006 00:00:00",null,"VO"]
[24,"2634","Нижегородская область","28156437","Боковское ММПП ЖКХ","5228002477","522801001",null,null,"VO"]
[25,"2634","Нижегородская область","31036531","ГБУ \"Автозаводский детский дом - интернат\"","5256026159","525601001",null,null,"VO"]
[26,"2634","Нижегородская область","27980367","ГБУ \"Варнавинский ПНИ\"","5207002268","520701001",null,null,"VO"]
[27,"2634","Нижегородская область","26358261","ГБУ \"Понетаевский ПНИ\"","5238001923","523801001",null,null,"VO"]
[28,"2634","Нижегородская область","26358243","ГБУ СРЦИ \"КРАСНЫЙ ЯР\"","5235001940","523501001",null,null,"VO"]
[29,"2634","Нижегородская область","26555218","ГБУЗ НО \"КИСЕЛИХИНСКИЙ ОБЛАСТНОЙ ТЕРАПЕВТИЧЕСКИЙ ГОСПИТАЛЬ ДЛЯ ВЕТЕРАНОВ ВОЙН\"","5246010400","524601001",null,null,"VO"]
[30,"2634","Нижегородская область","28043739","ГП НО НПЭК","5261005524","526101001",null,null,"VO"]
[31,"2634","Нижегородская область","26808802","Горьковская дирекция по тепловодоснабжению структурное подразделение Центральной дирекции по тепловодоснабжению - филиала ОАО \"РЖД\"","7708503727","525745041",null,null,"VO"]
[32,"2634","Нижегородская область","26358163","Дмитриевское МУП ЖКХ","5219382293","521901001",null,null,"VO"]
[33,"2634","Нижегородская область","26358130","Дубравское МУМППЖКХ","5215000842","521501001",null,null,"VO"]
[34,"2634","Нижегородская область","31025414","ЖЭ(К)О №11 (филиал ФГБУ \"ЦЖКУ\" МИНОБОРОНЫ РОССИИ)","7729314745","526245001",null,null,"VO"]
[35,"2634","Нижегородская область","26358490","ЗАО \"ЗКПД 4 Инвест\"","5263034792","526301001",null,null,"VO"]
[36,"2634","Нижегородская область","26646756","ЗАО \"Зефс Услуги\"","5258050742","525801001",null,null,"VO"]
[37,"2634","Нижегородская область","26647094","ЗАО \"СМИ\"","5208000506","520801001",null,null,"VO"]
[38,"2634","Нижегородская область","29648869","ЗАО \"СРЦ \"Голубая Ока\"","5260130762","524901001",null,null,"VO"]
[39,"2634","Нижегородская область","28053932","ИП Фуфина Н.В.","524400027272","отсутствует",null,null,"VO"]
[40,"2634","Нижегородская область","26358255","КУЗНЕЦОВСКОЕ МУП ЖКХ","5236002390","523601001",null,null,"VO"]
[41,"2634","Нижегородская область","26358306","Каликинский шпалопропиточный завод - филиал ОАО  \"БетЭлТранс\"","5246001839","997650001",null,null,"VO"]
[42,"2634","Нижегородская область","26358258","Катунское МУП ЖКХ","5236004975","523601001",null,null,"VO"]
[43,"2634","Нижегородская область","26380569","Кужутское МУМППЖКХ","5215000458","521501001",null,null,"VO"]
[44,"2634","Нижегородская область","29648861","МП \"ВАДРЕСУРС\"","5206025103","520601001",null,null,"VO"]
[45,"2634","Нижегородская область","26373588","МП \"Водоканал\"","5240003928","524001001",null,null,"VO"]
[46,"2634","Нижегородская область","26557167","МП \"Горводоканал\"","5228009994","522801001",null,null,"VO"]
[47,"2634","Нижегородская область","26373529","МП \"Горводопровод\"","5228009786","522801001",null,null,"VO"]
[48,"2634","Нижегородская область","26373443","МП \"ДИВЕЕВСКОЕ ЖКХ\"","5216017133","521601001",null,null,"VO"]
[49,"2634","Нижегородская область","26373449","МП \"ЖКХ \"Ковернинское\"","5218004355","521801001",null,null,"VO"]
[50,"2634","Нижегородская область","26373451","МП \"ЖКХ \"Сухоносовское\"","5218005045","521801001",null,null,"VO"]
[51,"2634","Нижегородская область","28942141","МП \"Жилкомсервис\"","5223034940","522301001",null,null,"VO"]
[52,"2634","Нижегородская область","26358144","МП \"Коммунальник\"","5216017239","521601001",null,null,"VO"]
[53,"2634","Нижегородская область","26358307","МП \"Линдовский ККПиБ\"","5246004124","524601001",null,null,"VO"]
[54,"2634","Нижегородская область","26373490","МП \"НКС\"","5223033369","522301001",null,null,"VO"]
[55,"2634","Нижегородская область","26373492","МП \"Радуга\"","5224003504","522401001",null,null,"VO"]
[56,"2634","Нижегородская область","26358141","МП \"Сатисское ЖКХ\"","5216017126","521601001",null,null,"VO"]
[57,"2634","Нижегородская область","26358297","МП ЖКХ С.КАМЕНКИ","5245007965","524501001",null,null,"VO"]
[58,"2634","Нижегородская область","26557653","МУП \"БОС\"","5222005009","522201001",null,null,"VO"]
[59,"2634","Нижегородская область","26652819","МУП \"Большое Козино\"","5244022199","524401001",null,null,"VO"]
[60,"2634","Нижегородская область","26373543","МУП \"Бытсервис\"","5231004770","523101001",null,null,"VO"]
[61,"2634","Нижегородская область","30959246","МУП \"ВОДОКАНАЛ\"","5221006970","522101001",null,null,"VO"]
[62,"2634","Нижегородская область","26555458","МУП \"ВОДОКАНАЛ\"","5252021897","525201001",null,null,"VO"]
[63,"2634","Нижегородская область","30855659","МУП \"ВОРОТЫНСКОЕ ЖКХ\"","5211759886","521101001",null,null,"VO"]
[64,"2634","Нижегородская область","26358098","МУП \"Варнавинкоммунсервис\"","5207003582","520701001",null,null,"VO"]
[65,"2634","Нижегородская область","27636510","МУП \"Вахтантепловодоканал\"","5239008713","523901001",null,null,"VO"]
[66,"2634","Нижегородская область","26373558","МУП \"Вершиловский сельский ЖЭУ\"","5236007310","523601001",null,null,"VO"]
[67,"2634","Нижегородская область","26373540","МУП \"Виткулово\"","5231005132","523101001",null,null,"VO"]
[68,"2634","Нижегородская область","28871157","МУП \"Водоканал\"","5239010720","523901001",null,null,"VO"]
[69,"2634","Нижегородская область","26373633","МУП \"Водоканал\"","5250021348","525001001",null,null,"VO"]
[70,"2634","Нижегородская область","26373654","МУП \"Ворсменское МПП ЖКХ\"","5252004965","525201001",null,null,"VO"]
[71,"2634","Нижегородская область","26358264","МУП \"ГАРАНТ-ЖКХ\"","5238005477","523801001",null,null,"VO"]
[72,"2634","Нижегородская область","29645609","МУП \"Гидроторф - Водоканал\" МО \"р.п. Гидроторф\"","5244027743","524401001","03-04-2014 00:00:00",null,"VO"]
[73,"2634","Нижегородская область","26373661","МУП \"Горводоканал\"","5254005971","525401001",null,null,"VO"]
[74,"2634","Нижегородская область","28447754","МУП \"Городской Водоканал\"","5250058789","525001001",null,null,"VO"]
[75,"2634","Нижегородская область","27371762","МУП \"Городской жилфонд\"","5226013748","522601001",null,null,"VO"]
[76,"2634","Нижегородская область","26358121","МУП \"ЖИЛИЩНИК\" ВОЛОДАРСКОГО РАЙОНА","5214006023","521401001",null,null,"VO"]
[77,"2634","Нижегородская область","28449409","МУП \"ЖКХ \"СЕВЕРНЫЙ\"","5248036146","524801001",null,null,"VO"]
[78,"2634","Нижегородская область","28005091","МУП \"ЖКХ Буревестник\"","5248033561","524801001",null,null,"VO"]
[79,"2634","Нижегородская область","26358324","МУП \"ЖКХ Зарубинское\"","5248015611","524801001",null,null,"VO"]
[80,"2634","Нижегородская область","26358331","МУП \"ЖКХ Зиняковское\"","5248015700","524801001",null,null,"VO"]
[81,"2634","Нижегородская область","26358333","МУП \"ЖКХ Ильинское\"","5248015724","524801001",null,null,"VO"]
[82,"2634","Нижегородская область","26358330","МУП \"ЖКХ Ковригинское\"","5248015690","524801001",null,null,"VO"]
[83,"2634","Нижегородская область","26358329","МУП \"ЖКХ Кумохинское\"","5248015682","524801001",null,null,"VO"]
[84,"2634","Нижегородская область","28147903","МУП \"ЖКХ Лысковского района\"","5222070569","522201001",null,null,"VO"]
[85,"2634","Нижегородская область","26358335","МУП \"ЖКХ Мошковское\"","5248015756","524801001",null,null,"VO"]
[86,"2634","Нижегородская область","27893480","МУП \"ЖКХ Сеченовское\"","5230004200","523001001",null,null,"VO"]
[87,"2634","Нижегородская область","26358327","МУП \"ЖКХ Смольковское\"","5248015650","524801001",null,null,"VO"]
[88,"2634","Нижегородская область","26358334","МУП \"ЖКХ Тимирязево\"","5248015749","524801001",null,null,"VO"]
[89,"2634","Нижегородская область","26358332","МУП \"ЖКХ Федуринское\"","5248015717","524801001",null,null,"VO"]
[90,"2634","Нижегородская область","26358081","МУП \"Жилком\"","5201029760","520101001",null,null,"VO"]
[91,"2634","Нижегородская область","26373562","МУП \"Жилкоммунсервис\" д. Котельницы","5236007126","523601001",null,null,"VO"]
[92,"2634","Нижегородская область","26358220","МУП \"Жилсервис\"","5231004795","523101001",null,null,"VO"]
[93,"2634","Нижегородская область","26552168","МУП \"КОМУНЭНЕРГО\"","5238006336","523801001",null,null,"VO"]
[94,"2634","Нижегородская область","30354230","МУП \"КОНЕВО\"","5244029437","524401001",null,null,"VO"]
[95,"2634","Нижегородская область","26358114","МУП \"Коммунальник\"","5214000039","521401001",null,null,"VO"]
[96,"2634","Нижегородская область","28146599","МУП \"Коммунальник\"","5222003594","522201001",null,null,"VO"]
[97,"2634","Нижегородская область","26373421","МУП \"Коммунсервис\"","5214000230","521401001",null,null,"VO"]
[98,"2634","Нижегородская область","28827589","МУП \"Кочергино\"","5244025619","524401001",null,null,"VO"]
[99,"2634","Нижегородская область","26358265","МУП \"Лесогорск ЖКХ\"","5238005484","523801001",null,null,"VO"]
[100,"2634","Нижегородская область","28872216","МУП \"МАЛОЕ КОЗИНО\"","5244028031","524401001",null,null,"VO"]
[101,"2634","Нижегородская область","27839234","МУП \"МП \"Водоканал\" МО \"города Балахна\"","5244025070","524401001",null,null,"VO"]
[102,"2634","Нижегородская область","26652814","МУП \"МП \"ТЕПЛОЭНЕРГО\" МО \"БМР НО\"","5244022262","524401001",null,null,"VO"]
[103,"2634","Нижегородская область","27808573","МУП \"Новосмолинское\"","5214010679","521401001",null,null,"VO"]
[104,"2634","Нижегородская область","26358266","МУП \"ПРАКТИК\"","5238005533","523801001",null,null,"VO"]
[105,"2634","Нижегородская область","26373647","МУП \"Райводоканал\"","5251007667","525101001","16-11-2001 00:00:00",null,"VO"]
[106,"2634","Нижегородская область","30382083","МУП \"СЕВЕРНОЕ ЖКХ\"","5207016670","520701001",null,null,"VO"]
[107,"2634","Нижегородская область","26358226","МУП \"СПАССКОЕ ЖКХ\"","5232002977","523201001",null,null,"VO"]
[108,"2634","Нижегородская область","26380675","МУП \"СТОКИ\"","5247015217","524701001",null,null,"VO"]
[109,"2634","Нижегородская область","26373448","МУП \"Соловьевское ЖКХ\"","5217000333","521701003",null,null,"VO"]
[110,"2634","Нижегородская область","27773931","МУП \"Сява - Теплосервис\"","5239010374","523901001",null,null,"VO"]
[111,"2634","Нижегородская область","28053496","МУП \"СяваТепло\"","5239010688","523901001",null,null,"VO"]
[112,"2634","Нижегородская область","27636513","МУП \"Сявакоммунсервис\"","5239008061","523901001",null,null,"VO"]
[113,"2634","Нижегородская область","26373630","МУП \"ТВК\" г. Заволжья","5248016372","524801001",null,null,"VO"]
[114,"2634","Нижегородская область","27573878","МУП \"Тепло\"","5252029494","525201001",null,null,"VO"]
[115,"2634","Нижегородская область","26552019","МУП \"Тепловик-1\"","5217001030","521701001",null,null,"VO"]
[116,"2634","Нижегородская область","26552021","МУП \"Тепловик-2\"","5217001062","521701001",null,null,"VO"]
[117,"2634","Нижегородская область","26358322","МУП \"Тепловые сети\"","5248011350","524801001",null,null,"VO"]
[118,"2634","Нижегородская область","26358206","МУП \"Теплосервис\"","5228009803","522801001",null,null,"VO"]
[119,"2634","Нижегородская область","26373542","МУП \"Теплоснаб\"","5231004763","523101001","26-12-2005 00:00:00",null,"VO"]
[120,"2634","Нижегородская область","26358221","МУП \"Теплоэнергия-1\"","5231004851","523101001",null,null,"VO"]
[121,"2634","Нижегородская область","26373596","МУП \"УВКХ\"","5245013020","524501001",null,null,"VO"]
[122,"2634","Нижегородская область","26373388","МУП \"Управляющая компания\"","5204001114","520401001",null,null,"VO"]
[123,"2634","Нижегородская область","26373587","МУП \"Шахуньяводоканал\"","5239008791","523901001",null,null,"VO"]
[124,"2634","Нижегородская область","26358223","МУП \"Яковское\"","5231005125","523101001",null,null,"VO"]
[125,"2634","Нижегородская область","26774409","МУП Варнавинского района \"Северный\"","5207013439","520701001",null,null,"VO"]
[126,"2634","Нижегородская область","27577563","МУП ЖКХ","5237002949","523701001",null,null,"VO"]
[127,"2634","Нижегородская область","26358136","МУП ЖКХ \"БОГОЯВЛЕНСКОЕ\"","5215010375","521501001",null,null,"VO"]
[128,"2634","Нижегородская область","28146582","МУП ЖКХ \"Бармино\"","5222000272","522201001",null,null,"VO"]
[129,"2634","Нижегородская область","26373417","МУП ЖКХ \"Водоканал\"","5212007342","521201001",null,null,"VO"]
[130,"2634","Нижегородская область","26373427","МУП ЖКХ \"Жилсервис\" Володарского района","5214007997","521401001","10-06-2003 00:00:00",null,"VO"]
[131,"2634","Нижегородская область","26358120","МУП ЖКХ \"Ильиногорское\"","5214005012","521401001",null,null,"VO"]
[132,"2634","Нижегородская область","27633085","МУП ЖКХ \"Коммунальник\"","5203002330","520303001",null,null,"VO"]
[133,"2634","Нижегородская область","26358169","МУП ЖКХ \"Леньково\"","5222070336","522201001",null,null,"VO"]
[134,"2634","Нижегородская область","26358173","МУП ЖКХ \"Нива\"","5222001100","522201001",null,null,"VO"]
[135,"2634","Нижегородская область","26358170","МУП ЖКХ \"Просек\"","5222070343","522201001",null,null,"VO"]
[136,"2634","Нижегородская область","28452082","МУП ЖКХ \"Сокол\"","5248034734","524801001",null,null,"VO"]
[137,"2634","Нижегородская область","26555489","МУП ЖКХ \"Тепелевское\"","5215001797","521501001","13-10-2009 00:00:00",null,"VO"]
[138,"2634","Нижегородская область","28155211","МУП ЖКХ Бриляково","5248015668","524801001",null,null,"VO"]
[139,"2634","Нижегородская область","28155300","МУП ЖКХ Смиркино","5248015643","524801001",null,null,"VO"]
[140,"2634","Нижегородская область","26358092","МУП ЖКХ Холязинского сельсовета","5204003070","520401001",null,null,"VO"]
[141,"2634","Нижегородская область","26358091","МУП ЖКХ п. Советский","5204002319","520401001",null,null,"VO"]
[142,"2634","Нижегородская область","26552080","МУП ЖКХ р.п. Красные Баки","5219382342","521901001","04-07-2007 00:00:00",null,"VO"]
[143,"2634","Нижегородская область","26358231","МУП Тонкинского района \"Тонкинские теплосети\"","5233002810","523301001",null,null,"VO"]
[144,"2634","Нижегородская область","26373600","МУП п. Буревестник","5245012411","524501001",null,null,"VO"]
[145,"2634","Нижегородская область","26358129","Малопицкое МУМППЖКХ","5215000761","521501001","29-06-2006 00:00:00",null,"VO"]
[146,"2634","Нижегородская область","26358124","Нижегородское МУМППЖКХ","5215000391","521501001",null,null,"VO"]
[147,"2634","Нижегородская область","26358150","ОАО \"Агроплемкомбинат МИР\"","5218005172","521801001",null,null,"VO"]
[148,"2634","Нижегородская область","27367624","ОАО \"Агрофирма \"Птицефабрика Сеймовская\"","5214002050","521401001",null,null,"VO"]
[149,"2634","Нижегородская область","26555453","ОАО \"Борремфлот\"","5246000850","524601001",null,null,"VO"]
[150,"2634","Нижегородская область","26358301","ОАО \"Борская фабрика ПОШ\"","5246000458","524601001",null,null,"VO"]
[151,"2634","Нижегородская область","26555692","ОАО \"Вознесенский водоканал\"","5210189908","521001001",null,null,"VO"]
[152,"2634","Нижегородская область","26373632","ОАО \"ДВК\"","5260154749","524901001",null,null,"VO"]
[153,"2634","Нижегородская область","26358337","ОАО \"Дизель\"","5249012839","524901001",null,null,"VO"]
[154,"2634","Нижегородская область","26358486","ОАО \"Железобетонстрой № 5\"","5263001405","526301001",null,null,"VO"]
[155,"2634","Нижегородская область","26358117","ОАО \"Ильиногорское\"","5214001459","521401001",null,null,"VO"]
[156,"2634","Нижегородская область","26358237","ОАО \"Коммунтехсервис\"","5234003863","523401001",null,null,"VO"]
[157,"2634","Нижегородская область","26358171","ОАО \"ЛЭТЗ\"","5222000882","522201001",null,null,"VO"]
[158,"2634","Нижегородская область","26555460","ОАО \"МИЗ им. М.Горького\"","5252000488","525201001",null,null,"VO"]
[159,"2634","Нижегородская область","26358359","ОАО \"МИЗ-Ворсма\"","5252000368","525201001",null,null,"VO"]
[160,"2634","Нижегородская область","26358270","ОАО \"Молоко\"","5239001108","523901001",null,null,"VO"]
[161,"2634","Нижегородская область","26373662","ОАО \"НИЖЕГОРОДСКИЙ ВОДОКАНАЛ\"","5257086827","525350001",null,null,"VO"]
[162,"2634","Нижегородская область","26358321","ОАО \"ПАНСИОНАТ \"БУРЕВЕСТНИК\"","5248005892","524801001",null,null,"VO"]
[163,"2634","Нижегородская область","26358289","ОАО \"Полиграфкартон\"","5244010789","524401001",null,null,"VO"]
[164,"2634","Нижегородская область","27622545","ОАО \"Птицефабрика \"Кудьминская\"","5245002438","524501001",null,null,"VO"]
[165,"2634","Нижегородская область","26648877","ОАО \"РЖД\" (Дирекция по тепловодоснабжению)","7708503727","997650010",null,null,"VO"]
[166,"2634","Нижегородская область","26358278","ОАО \"Рикор-Электроникс\"","5243001622","524301001",null,null,"VO"]
[167,"2634","Нижегородская область","26808463","ОАО \"Синтез\"","5249003520","524901001",null,null,"VO"]
[168,"2634","Нижегородская область","27054261","ОАО \"ТГК-6\"","5257072937","526001001",null,null,"VO"]
[169,"2634","Нижегородская область","26358112","ОАО \"Тепловик\"","5211759082","521101001","26-02-2004 00:00:00",null,"VO"]
[170,"2634","Нижегородская область","26951315","ОАО \"УК ЖКХ Починковского района\"","5227006006","522701001",null,null,"VO"]
[171,"2634","Нижегородская область","26358214","ОАО \"УК ЖКХ Сергачского района\"","5229007213","522901001",null,null,"VO"]
[172,"2634","Нижегородская область","31029548","ООО \"АКВА\"","5260445280","526001001",null,null,"VO"]
[173,"2634","Нижегородская область","26373589","ООО \"АРЗАМАССКИЙ ВОДОКАНАЛ\"","5243027892","524301001","24-02-2010 00:00:00",null,"VO"]
[174,"2634","Нижегородская область","28140500","ООО \"Агрофирма \"Волготрансгаз\"","5203001513","522202001",null,null,"VO"]
[175,"2634","Нижегородская область","26758117","ООО \"АкваКом\"","5228056218","522801001",null,null,"VO"]
[176,"2634","Нижегородская область","26358250","ООО \"Арьякоммунсервис\"","5235006602","523501001",null,null,"VO"]
[177,"2634","Нижегородская область","26555455","ООО \"БАЗ\"","5246046131","524601001",null,null,"VO"]
[178,"2634","Нижегородская область","31043296","ООО \"БКК\"","5244030591","524401001",null,null,"VO"]
[179,"2634","Нижегородская область","26373394","ООО \"Бутурлинский водоканал\"","5205004809","520501001",null,null,"VO"]
[180,"2634","Нижегородская область","26373590","ООО \"Быт-Сервис\"","5244015434","524401001",null,null,"VO"]
[181,"2634","Нижегородская область","28001435","ООО \"ВИКОМ\"","5210000334","521001001",null,null,"VO"]
[182,"2634","Нижегородская область","30875825","ООО \"ВОДОКАНАЛ\"","5223035126","522301001","18-04-2016 00:00:00",null,"VO"]
[183,"2634","Нижегородская область","27367568","ООО \"Вадводоканал\"","5206024741","520601001",null,null,"VO"]
[184,"2634","Нижегородская область","30382101","ООО \"ВетлугаСервис\"","5209003147","520901001",null,null,"VO"]
[185,"2634","Нижегородская область","28456900","ООО \"Ветлугаводоканал\"","5209005955","520901001",null,null,"VO"]
[186,"2634","Нижегородская область","26555487","ООО \"ВоСток-ДК\"","5215001638","521501001",null,null,"VO"]
[187,"2634","Нижегородская область","30377814","ООО \"Водоканал города Навашино\"","5262271617","526201001",null,null,"VO"]
[188,"2634","Нижегородская область","26951326","ООО \"Водоканал\"","5212510490","521201001",null,null,"VO"]
[189,"2634","Нижегородская область","26373491","ООО \"Водоканал\"","5223033697","522301001",null,null,"VO"]
[190,"2634","Нижегородская область","28037719","ООО \"Водоканал-Строй-Сервис\"","5229008351","522990100","05-02-2010 00:00:00",null,"VO"]
[191,"2634","Нижегородская область","28857372","ООО \"Волга-УК \"ЖКХ\"","5244023957","524401001",null,null,"VO"]
[192,"2634","Нижегородская область","31026167","ООО \"Восход\"","5207016711","520701001",null,null,"VO"]
[193,"2634","Нижегородская область","26774403","ООО \"Восходкомин\"","5207013252","520701001",null,null,"VO"]
[194,"2634","Нижегородская область","27773921","ООО \"Дом отдыха \"Кудьма\"","5260077438","526001001",null,null,"VO"]
[195,"2634","Нижегородская область","28091842","ООО \"ЖКС\"","5223034676","522301001",null,null,"VO"]
[196,"2634","Нижегородская область","26557561","ООО \"ЖКХ \"Сатис\"","5216017510","521601001",null,null,"VO"]
[197,"2634","Нижегородская область","26557165","ООО \"Жилкомсервис\"","5228055711","522801001",null,null,"VO"]
[198,"2634","Нижегородская область","26650748","ООО \"Жилкомсервис\"","5252023559","525201001",null,null,"VO"]
[199,"2634","Нижегородская область","26562570","ООО \"Заводские сети\"","5256049340","525350001",null,null,"VO"]
[200,"2634","Нижегородская область","26322342","ООО \"Зефс-энерго\"","5258049909","525801001",null,null,"VO"]
[201,"2634","Нижегородская область","30912429","ООО \"ИСТОК\"","5223035239","522301001",null,null,"VO"]
[202,"2634","Нижегородская область","30854345","ООО \"КОММУНАЛЬЩИК-НН\"","5245027023","524501001","19-10-2015 00:00:00",null,"VO"]
[203,"2634","Нижегородская область","26555680","ООО \"КОМСЕРВИС-В\"","5208004853","520801001",null,null,"VO"]
[204,"2634","Нижегородская область","28871053","ООО \"Капролактам-Энерго\"","5249133382","524901001",null,null,"VO"]
[205,"2634","Нижегородская область","26358104","ООО \"Коммунальник\"","5209005634","520901001",null,null,"VO"]
[206,"2634","Нижегородская область","27566780","ООО \"Коммунальщик\"","5245017794","524501001",null,null,"VO"]
[207,"2634","Нижегородская область","26373659","ООО \"Коммунальщик\"","5252022562","525201001",null,null,"VO"]
[208,"2634","Нижегородская область","27634860","ООО \"Коммунальщик\"","5260262462","526001001",null,null,"VO"]
[209,"2634","Нижегородская область","26555474","ООО \"Коммунсервис\"","5230003848","523001001",null,null,"VO"]
[210,"2634","Нижегородская область","28455154","ООО \"Коммунсервис\"","5235007356","523501001",null,null,"VO"]
[211,"2634","Нижегородская область","27886941","ООО \"Кузьмиярское\"","5211759413","521101001",null,null,"VO"]
[212,"2634","Нижегородская область","26795557","ООО \"Локал-Клининг\"","5248023556","524801001",null,null,"VO"]
[213,"2634","Нижегородская область","28457679","ООО \"Мухтоловское ЖКХ\"","5201000264","520101001","03-07-2012 00:00:00",null,"VO"]
[214,"2634","Нижегородская область","26951231","ООО \"Нижегородские моторы\"","5256067300","525350001",null,null,"VO"]
[215,"2634","Нижегородская область","26654118","ООО \"Очистные сооружения\"","5230004023","523001001",null,null,"VO"]
[216,"2634","Нижегородская область","26951379","ООО \"ПРОММАШ\"","5236001928","523601001",null,null,"VO"]
[217,"2634","Нижегородская область","28425154","ООО \"Профит\"","5262287335","526201001",null,null,"VO"]
[218,"2634","Нижегородская область","28859728","ООО \"РАЙВОДОКАНАЛСЕРВИС\"","5202012350","520201001",null,null,"VO"]
[219,"2634","Нижегородская область","28985128","ООО \"РВК\"","5249135284","524901001","01-09-2014 00:00:00",null,"VO"]
[220,"2634","Нижегородская область","26373384","ООО \"РайВодоканал\"","5202009950","520201001",null,null,"VO"]
[221,"2634","Нижегородская область","26570488","ООО \"Райводоканал\"","5201030090","520101001","12-01-2009 00:00:00",null,"VO"]
[222,"2634","Нижегородская область","26654120","ООО \"Ресурс\"","5225005769","522501001",null,null,"VO"]
[223,"2634","Нижегородская область","30429665","ООО \"СТРИМ\"","5257154516","525701001",null,null,"VO"]
[224,"2634","Нижегородская область","26551208","ООО \"Санаторий \"Городецкий\"","5248013357","524801001","13-10-1999 00:00:00",null,"VO"]
[225,"2634","Нижегородская область","28037821","ООО \"Сеченово-Водоканал\"","5230004217","523001001",null,null,"VO"]
[226,"2634","Нижегородская область","26759066","ООО \"Сосновскдорремстрой\"","5231003248","523101001",null,null,"VO"]
[227,"2634","Нижегородская область","27322384","ООО \"Сухобезводнинское ЖКХ\"","5228056070","522801001",null,null,"VO"]
[228,"2634","Нижегородская область","27580815","ООО \"Сява ЖКУ\"","5239010053","523901001",null,null,"VO"]
[229,"2634","Нижегородская область","27784821","ООО \"Тепло\"","5239010078","523901001",null,null,"VO"]
[230,"2634","Нижегородская область","28451389","ООО \"Транзит\"","5245021014","524501001",null,null,"VO"]
[231,"2634","Нижегородская область","30905542","ООО \"УК \"НОКК\"","7714740243","526001001",null,null,"VO"]
[232,"2634","Нижегородская область","30982795","ООО \"УК «СЕТКА-ЦЕНТР»","5249143408","524901001",null,null,"VO"]
[233,"2634","Нижегородская область","26555443","ООО \"Уренское ЖКХ\"","5235006592","523501001",null,null,"VO"]
[234,"2634","Нижегородская область","26373383","ООО \"Чернухинские водопроводные сети Арзамасского района\"","5202007128","520201000",null,null,"VO"]
[235,"2634","Нижегородская область","28821611","ООО \"ЭКОЛОГ\"","5234004810","523401001",null,null,"VO"]
[236,"2634","Нижегородская область","30830889","ООО \"ЭЛКОСТ\"","5257141193","525701001",null,null,"VO"]
[237,"2634","Нижегородская область","27673406","ООО \"Экоин - НОРСИ\"","5250038535","525001001",null,null,"VO"]
[238,"2634","Нижегородская область","27774384","ООО \"Энерго Ресурс\"","5214010855","521401001",null,null,"VO"]
[239,"2634","Нижегородская область","26776525","ООО «Коммунальные системы»","5216017912","521601001",null,null,"VO"]
[240,"2634","Нижегородская область","28155314","ООО ВИК","5244018499","524401001",null,null,"VO"]
[241,"2634","Нижегородская область","26358161","ООО МУП \"Коммунальник\"","5219005633","521901001",null,null,"VO"]
[242,"2634","Нижегородская область","30359845","ОП \"Нижегородское\" АО \"Главное управление жилищно-коммунального хозяйства\"","5116000922","526245001",null,null,"VO"]
[243,"2634","Нижегородская область","26322338","ПАО \"ЗМЗ\"","5248004137","524801001",null,null,"VO"]
[244,"2634","Нижегородская область","26322359","ПАО \"Завод \"Красное Сормово\"","5263006629","526301001",null,null,"VO"]
[245,"2634","Нижегородская область","26358385","ПАО \"МАНН\"","5256045754","525601001",null,null,"VO"]
[246,"2634","Нижегородская область","26322360","ПАО \"НМЗ\"","5259008768","525901001",null,null,"VO"]
[247,"2634","Нижегородская область","26380702","ПАО \"ПАВЛОВСКИЙ АВТОБУС\"","5252000350","525201001",null,null,"VO"]
[248,"2634","Нижегородская область","26380704","ПАО \"ПО\" ГОРИЗОНТ\"","5252000417","525201001","08-06-2016 00:00:00",null,"VO"]
[249,"2634","Нижегородская область","26358358","ПАО \"РУСПОЛИМЕТ\"","5251008501","525101001",null,null,"VO"]
[250,"2634","Нижегородская область","26358159","Прудовское МУП ЖКХ","5219005129","521901001",null,null,"VO"]
[251,"2634","Нижегородская область","26358256","Пуреховское МУП ЖКХ","5236002880","523601001",null,null,"VO"]
[252,"2634","Нижегородская область","30869142","СПК \"ЗАВЕТЫ ИЛЬИЧА\"","5222001075","522201001","20-09-2002 00:00:00",null,"VO"]
[253,"2634","Нижегородская область","26555497","СПК \"Ковернино\"","5218004299","521801001",null,null,"VO"]
[254,"2634","Нижегородская область","26555480","СПК \"Колхоз Искра\"","5245023484","524501001",null,null,"VO"]
[255,"2634","Нижегородская область","26555493","СПК \"Колхоз им. Кутузова\"","5218000791","521801001",null,null,"VO"]
[256,"2634","Нижегородская область","26555499","СПК \"Семинский\"","5218003601","521801001",null,null,"VO"]
[257,"2634","Нижегородская область","26358126","Сарлейское МУМППЖКХ","5215000507","521501001","24-03-2006 00:00:00",null,"VO"]
[258,"2634","Нижегородская область","27372109","Суроватихинское МУМПЖКХ","5215000722","521501001",null,null,"VO"]
[259,"2634","Нижегородская область","30903763","ФГБУ \"ЦЖКУ\" МИНОБОРОНЫ РОССИИ","7729314745","770101001",null,null,"VO"]
[260,"2634","Нижегородская область","26358103","ФГОУ СПО \"Ветлужский лесотехнический техникум\"","5209002802","520901001",null,null,"VO"]
[261,"2634","Нижегородская область","26755460","ФГОУ СПО \"Работкинский аграрный колледж\"","5250007142","525001001",null,null,"VO"]
[262,"2634","Нижегородская область","26358487","ФГУП \"Завод \"Электромаш\"","5263002110","526301001",null,null,"VO"]
[263,"2634","Нижегородская область","26768505","ФГУП \"РФЯЦ-ВНИИЭФ\"","5254001230","525401001",null,null,"VO"]
[264,"2634","Нижегородская область","26322363","ФКП \"Завод имени Я.М. Свердлова\"","5249002485","524901001",null,null,"VO"]
[265,"2634","Нижегородская область","27577541","ФКУ ИК-14 ГУФСИН РОССИИ ПО НИЖЕГОРОДСКОЙ ОБЛАСТИ","5228007193","522801001",null,null,"VO"]
[266,"2634","Нижегородская область","26358151","ФКУ ЛИУ-3 ГУФСИН РОССИИ ПО НИЖЕГОРОДСКОЙ ОБЛАСТИ","5219004125","521901001","21-03-2011 00:00:00",null,"VO"]
[267,"2634","Нижегородская область","28031747","филиал \"Нижегородский\" ОАО \"Славянка\"","7702707386","520201001",null,null,"VO"]

{"sheet":"modClassifierValidate","index":36,"n_rows":0,"n_cols":0,"rows_kept":0,"hidden":true}

{"sheet":"modHyp","index":37,"n_rows":0,"n_cols":0,"rows_kept":0,"hidden":true}

{"sheet":"modfrmDateChoose","index":38,"n_rows":0,"n_cols":0,"rows_kept":0,"hidden":true}

{"sheet":"modComm","index":39,"n_rows":0,"n_cols":0,"rows_kept":0,"hidden":true}

{"sheet":"modThisWorkbook","index":40,"n_rows":0,"n_cols":0,"rows_kept":0,"hidden":true}

{"sheet":"REESTR_MO","index":41,"n_rows":2,"n_cols":4,"rows_kept":2,"hidden":true}
["№","МР","МО","МО_ОКТМО"]
[1,"город Нижний Новгород","город Нижний Новгород","22701000"]

{"sheet":"modfrmReestrMR","index":42,"n_rows":0,"n_cols":0,"rows_kept":0,"hidden":true}

{"sheet":"modServiceModule","index":43,"n_rows":0,"n_cols":0,"rows_kept":0,"hidden":true}

{"sheet":"modfrmCheckUpdates","index":44,"n_rows":0,"n_cols":0,"rows_kept":0,"hidden":true}

{"sheet":"REESTR_DS","index":45,"n_rows":5,"n_cols":2,"rows_kept":5,"hidden":true}
[]
[]
[null,"город Нижний Новгород, город Нижний Новгород (22701000);"]
[null,"описание 2"]
[null,"Добавить "]

{"sheet":"REESTR_CHS","index":46,"n_rows":0,"n_cols":0,"rows_kept":0,"hidden":true}

{"sheet":"REESTR_LINK","index":47,"n_rows":2,"n_cols":3,"rows_kept":2,"hidden":true}
["ID","LINK_NAME","REGION"]
[64275710,"https://tariff.eias.ru/disclo/get_file?p_guid=????????-????-????-????-????????????","ALL"]